fUST/lending_fUST_20250925
["ID","MTS","AMOUNT","RATE_DAILY","PERIOD"]
[387538292,1758761438670,-1050.11,0.00019452,2]
[387538294,1758761438681,-480.0,0.00019452,2]
[387538296,1758761438699,-480.0,0.00019452,2]
[387538298,1758761438712,-480.0,0.00019452,2]
[387538300,1758761438724,-480.0,0.00019452,2]
[387538302,1758761438734,-480.0,0.00019452,2]
[387538304,1758761438744,-480.0,0.00019452,2]
[387538306,1758761438754,-288.19801325,0.00019452,2]
[387538309,1758761438767,-197.58198675,0.00019452,2]
[387538311,1758761438777,-480.0,0.00019452,2]
[387538313,1758761438787,-111.43019832,0.00019452,2]
[387538315,1758761438803,-982.6,0.00019452,2]
[387538318,1758761438818,-231.52980168,0.00019452,2]
[387538320,1758761438829,-480.0,0.00019452,2]
[387538323,1758761438841,-480.0,0.00019452,2]
[387538325,1758761438851,-23.14996593,0.00019452,2]
[387538327,1758761438863,-456.85003407,0.00019452,2]
[387538329,1758761438873,-705.0,0.00019452,2]
[387538331,1758761438884,-1307.55,0.00019452,2]
[387538334,1758761438897,-480.0,0.00019452,2]
[387538336,1758761438908,-480.0,0.00019452,2]
[387538338,1758761438920,-480.0,0.00019452,2]
[387538340,1758761438931,-480.0,0.00019452,2]
[387538342,1758761438940,-929.74,0.00019452,2]
[387538344,1758761438951,-682.65,0.00019452,2]
[387538347,1758761438963,-1110.13,0.00019452,2]
[387538349,1758761438972,-1005.1,0.00019452,2]
[387538351,1758761438984,-480.0,0.00019452,2]
[387538353,1758761438994,-480.0,0.00019452,2]
[387538355,1758761439005,-480.0,0.00019452,2]
[387538357,1758761439015,-480.0,0.00019452,2]
[387538359,1758761439025,-480.0,0.00019452,2]
[387538361,1758761439036,-526.22,0.00019452,2]
[387538364,1758761439046,-480.0,0.00019452,2]
[387538366,1758761439057,-480.0,0.00019452,2]
[387538368,1758761439067,-1074.81,0.00019452,2]
[387538370,1758761439077,-480.0,0.00019452,2]
[387538372,1758761439088,-480.0,0.00019452,2]
[387538374,1758761439099,-2168.43,0.00019452,2]
[387538376,1758761439109,-480.0,0.00019452,2]
[387538379,1758761439120,-500.0,0.00019452,2]
[387538381,1758761439131,-496.02337041,0.00019473,2]
[387538383,1758761439142,-500.0,0.00019473,2]
[387538385,1758761439153,-168.0,0.00019484,2]
[387538387,1758761439164,-502.58656631,0.00019554,2]
[387538389,1758761439177,-207.23458203,0.00019556,2]
[387538391,1758761439187,-415.49,0.00019626,2]
[387538394,1758761439198,-828.10938981,0.00019652,2]
[387538397,1758761439209,-2831.68331956,0.00019697,2]
[387538399,1758761439219,-173.0,0.00019698,2]
[387538402,1758761439232,-198.0,0.00019726,2]
[387538404,1758761439243,-500.0,0.00019726,2]
[387538406,1758761439255,-161.86067842,0.00019726,2]
[387538408,1758761439266,-480.0,0.00019726,2]
[387538410,1758761439276,-480.0,0.00019726,2]
[387538413,1758761439287,-480.0,0.00019726,2]
[387538416,1758761439298,-480.0,0.00019726,2]
[387538419,1758761439308,-214.45,0.00019726,2]
[387538422,1758761439319,-84.29606977,0.00019726,2]
[387538425,1758761439332,-395.70393023,0.00019726,2]
[387538430,1758761439344,-480.0,0.00019726,2]
[387538434,1758761439354,-480.0,0.00019726,2]
[387538438,1758761439365,-480.0,0.00019726,2]
[387538442,1758761439375,-480.0,0.00019726,2]
[387538446,1758761439386,-740.42,0.00019726,2]
[387538450,1758761439397,-657.49,0.00019726,2]
[387538454,1758761439408,-896.97,0.00019726,2]
[387538459,1758761439418,-3139.55,0.00019726,2]
[387538464,1758761439429,-480.0,0.00019726,2]
[387538469,1758761439440,-480.0,0.00019726,2]
[387538472,1758761439451,-611.88,0.00019726,2]
[387538475,1758761439462,-1858.81,0.00019726,2]
[387538478,1758761439472,-713.81,0.00019726,2]
[387538481,1758761439483,-686.74188167,0.00019726,2]
[387538488,1758761439508,-151.0,0.00019178,2]
[387538491,1758761439517,-151.0,0.00019178,2]
[387538494,1758761439526,-300.27811833,0.00019726,2]
[387538497,1758761439536,-1126.28,0.00019726,2]
[387538500,1758761439546,-480.0,0.00019726,2]
[387538503,1758761439555,-191.86482146,0.00019726,2]
[387538506,1758761439565,-480.0,0.00019726,2]
[387538509,1758761439574,-480.0,0.00019726,2]
[387538512,1758761439583,-639.57706021,0.00019726,2]
[387538591,1758761439957,-151.0,0.00019178,2]
[387538594,1758761439968,-151.0,0.00019178,2]
[387538597,1758761439978,-151.0,0.00019178,2]
[387538600,1758761439987,-151.0,0.00019178,2]
[387538603,1758761439997,-169.22293979,0.00019726,2]
[387538606,1758761440007,-480.0,0.00019726,2]
[387538609,1758761440017,-1050.11,0.00019726,2]
[387538612,1758761440026,-480.0,0.00019726,2]
[387538615,1758761440035,-480.0,0.00019726,2]
[387538618,1758761440044,-480.0,0.00019726,2]
[387538621,1758761440053,-480.0,0.00019726,2]
[387538624,1758761440062,-480.0,0.00019726,2]
[387538626,1758761440071,-420.13749659,0.00019726,2]
[387538628,1758761440081,-485.78,0.00019726,2]
[387538630,1758761440090,-480.0,0.00019726,2]
[387538632,1758761440099,-416.19089141,0.00019726,2]
[387538634,1758761440111,-909.36910859,0.00019726,2]
[387538636,1758761440120,-480.0,0.00019726,2]
[387538638,1758761440129,-480.0,0.00019726,2]
[387538641,1758761440139,-480.0,0.00019726,2]
[387538645,1758761440149,-705.0,0.00019726,2]
[387538647,1758761440158,-1307.55,0.00019726,2]
[387538651,1758761440169,-480.0,0.00019726,2]
[387538654,1758761440179,-480.0,0.00019726,2]
[387538656,1758761440192,-480.0,0.00019726,2]
[387538659,1758761440202,-480.0,0.00019726,2]
[387538662,1758761440211,-929.74,0.00019726,2]
[387538665,1758761440222,-682.65,0.00019726,2]
[387538669,1758761440233,-1110.13,0.00019726,2]
[387538672,1758761440242,-1005.1,0.00019726,2]
[387538674,1758761440251,-480.0,0.00019726,2]
[387538678,1758761440263,-480.0,0.00019726,2]
[387538681,1758761440273,-480.0,0.00019726,2]
[387538684,1758761440282,-460.29,0.00019726,2]
[387538687,1758761440292,-526.22,0.00019726,2]
[387538689,1758761440301,-480.0,0.00019726,2]
[387538692,1758761440311,-480.0,0.00019726,2]
[387538695,1758761440320,-1074.81,0.00019726,2]
[387538699,1758761440330,-480.0,0.00019726,2]
[387538702,1758761440340,-2168.43,0.00019726,2]
[387538705,1758761440349,-480.0,0.00019726,2]
[387538708,1758761440358,-500.0,0.00019726,2]
[387538711,1758761440368,-2008.33591896,0.00019729,2]
[387538713,1758761440377,-3762.51169565,0.000199,2]
[387538717,1758761440386,-399.5,0.000199,2]
[387538719,1758761440397,-1000.0,0.00019921,2]
[387538722,1758761440406,-1000.0,0.00019921,2]
[387538725,1758761440416,-500.0,0.00019921,2]
[387538728,1758761440425,-1096.12078214,0.00019921,2]
[387538731,1758761440435,-1000.0,0.00019921,2]
[387538734,1758761440445,-1000.0,0.00019921,2]
[387538737,1758761440454,-1000.0,0.00019921,2]
[387538740,1758761440463,-569.41594767,0.00019921,2]
[387539064,1758761442932,-151.0,0.00019178,2]
[387539066,1758761442942,-151.0,0.00019178,2]
[387539068,1758761442951,-151.0,0.00019178,2]
[387539070,1758761442961,-151.0,0.00019178,2]
[387539072,1758761442970,-500.0,0.00019351,2]
[387539074,1758761442980,-209.73057538,0.00019351,2]
[387539273,1758761445784,-480.0,0.00019178,2]
[387539274,1758761445795,-141.74251151,0.00019178,2]
[387539275,1758761445807,-9.25748849,0.00019178,2]
[387539276,1758761445817,-151.0,0.00019178,2]
[387539277,1758761445827,-480.0,0.00019178,2]
[387539278,1758761445836,-38.67249887,0.00019351,2]
[387539279,1758761445848,-251.59692575,0.00019351,2]
[387539280,1758761445858,-500.0,0.00019351,2]
[387539281,1758761445867,-536.69372312,0.00019351,2]
[387539282,1758761445877,-500.0,0.00019351,2]
[387539283,1758761445887,-480.0,0.00019452,2]
[387539284,1758761445897,-480.0,0.00019452,2]
[387539285,1758761445907,-480.0,0.00019726,2]
[387539286,1758761445917,-480.0,0.00019726,2]
[387539287,1758761445926,-430.58405233,0.00019921,2]
[387539288,1758761445935,-1000.0,0.00019921,2]
[387539289,1758761445945,-1000.0,0.00019921,2]
[387539291,1758761445956,-1000.0,0.00019921,2]
[387539293,1758761445965,-1000.0,0.00019921,2]
[387539294,1758761445976,-474.8624388,0.00019921,2]
[387539295,1758761445986,-1000.0,0.00019921,2]
[387539296,1758761445995,-688.84353114,0.00019921,2]
[387539297,1758761446004,-502.18387094,0.00019921,2]
[387539298,1758761446013,-1000.0,0.00019921,2]
[387539299,1758761446023,-1000.0,0.00019921,2]
[387539300,1758761446033,-500.0,0.00019921,2]
[387539301,1758761446043,-1000.0,0.00019921,2]
[387539302,1758761446052,-1000.0,0.00019921,2]
[387539303,1758761446062,-501.18299892,0.00019921,2]
[387539304,1758761446072,-1000.0,0.00019921,2]
[387539305,1758761446082,-1000.0,0.00019921,2]
[387539306,1758761446091,-1000.0,0.00019921,2]
[387539307,1758761446101,-173.0,0.00019923,2]
[387539308,1758761446110,-500.0,0.00019973,2]
[387539309,1758761446120,-500.0,0.00019973,2]
[387539310,1758761446130,-500.0,0.00019973,2]
[387539311,1758761446139,-601.08284645,0.00019973,2]
[387539312,1758761446149,-451.77073566,0.00019973,2]
[387539313,1758761446159,-505.6341822,0.00019973,2]
[387539314,1758761446169,-500.0,0.00019973,2]
[387539315,1758761446179,-500.0,0.00019973,2]
[387539316,1758761446193,-500.0,0.00019973,2]
[387539317,1758761446203,-500.0,0.00019973,2]
[387539318,1758761446212,-500.0,0.00019973,2]
[387539319,1758761446221,-500.0,0.00019973,2]
[387539320,1758761446232,-500.0,0.00019973,2]
[387539321,1758761446242,-500.0,0.00019973,2]
[387539322,1758761446251,-500.0,0.00019973,2]
[387539323,1758761446261,-500.0,0.00019973,2]
[387539324,1758761446271,-500.0,0.00019973,2]
[387539325,1758761446280,-500.0,0.00019973,2]
[387539326,1758761446290,-500.0,0.00019973,2]
[387539327,1758761446300,-500.0,0.00019973,2]
[387539329,1758761446309,-500.0,0.00019973,2]
[387539331,1758761446319,-500.0,0.00019973,2]
[387539333,1758761446328,-500.0,0.00019973,2]
[387539335,1758761446337,-174.96649909,0.00019973,2]
[387539337,1758761446346,-500.0,0.00019973,2]
[387539339,1758761446356,-157.70921839,0.00019973,2]
[387539340,1758761446366,-500.0,0.00019973,2]
[387539341,1758761446375,-500.0,0.00019973,2]
[387539343,1758761446384,-500.0,0.00019973,2]
[387539344,1758761446394,-500.0,0.00019973,2]
[387539345,1758761446403,-500.0,0.00019973,2]
[387539346,1758761446412,-500.0,0.00019973,2]
[387539348,1758761446421,-500.0,0.00019973,2]
[387539350,1758761446430,-430.31380382,0.00019973,2]
[387539352,1758761446439,-500.0,0.00019973,2]
[387539354,1758761446449,-508.76632959,0.00019973,2]
[387539356,1758761446458,-500.0,0.00019973,2]
[387539358,1758761446468,-500.0,0.00019973,2]
[387539360,1758761446478,-500.0,0.00019973,2]
[387539362,1758761446487,-500.0,0.00019973,2]
[387539364,1758761446497,-500.0,0.00019973,2]
[387539366,1758761446506,-500.0,0.00019973,2]
[387539368,1758761446516,-500.0,0.00019973,2]
[387539370,1758761446525,-293.81453449,0.00019973,2]
[387539372,1758761446534,-500.0,0.00019973,2]
[387539374,1758761446544,-500.0,0.00019973,2]
[387539377,1758761446553,-500.0,0.0002,2]
[387539379,1758761446562,-500.0,0.0002,2]
[387539381,1758761446571,-480.0,0.0002,2]
[387539383,1758761446581,-480.0,0.0002,2]
[387539385,1758761446591,-480.0,0.0002,2]
[387539387,1758761446600,-480.0,0.0002,2]
[387539389,1758761446610,-480.0,0.0002,2]
[387539391,1758761446619,-480.0,0.0002,2]
[387539393,1758761446629,-480.0,0.0002,2]
[387539395,1758761446638,-480.0,0.0002,2]
[387539397,1758761446648,-480.0,0.0002,2]
[387539399,1758761446658,-740.42,0.0002,2]
[387539401,1758761446667,-657.49,0.0002,2]
[387539403,1758761446677,-896.97,0.0002,2]
[387539405,1758761446687,-3139.55,0.0002,2]
[387539407,1758761446696,-480.0,0.0002,2]
[387539408,1758761446706,-611.88,0.0002,2]
[387539410,1758761446715,-1336.07802202,0.0002,2]
[387539413,1758761446729,-342.55454446,0.0002,2]
[387539416,1758761446749,-180.17743352,0.0002,2]
[387539418,1758761446759,-713.81,0.0002,2]
[387539420,1758761446769,-987.02,0.0002,2]
[387539422,1758761446778,-163.79644913,0.0002,2]
[387539424,1758761446788,-480.0,0.0002,2]
[387539426,1758761446797,-808.8,0.0002,2]
[387539428,1758761446806,-293.71935196,0.0002,2]
[387539811,1758761546671,160.0,0.000273,120]
[387539812,1758761547390,160.0,0.000273,120]
[387539813,1758761548249,160.0,0.000273,120]
[387539814,1758761560661,160.0,0.00019,3]
[387539815,1758761561562,160.0,0.00019,3]
[387539825,1758761788635,199.28701912,0.00019078,2]
[387539837,1758762074200,174.37614173,0.00019078,2]
[387539847,1758762458934,152.57912404,0.00019078,2]
[387539896,1758762632038,-300.0,0.00019177,2]
[387539898,1758762632047,-26.18055687,0.00019177,2]
[387539904,1758762632093,-954.81944313,0.00019177,2]
[387539906,1758762632104,-480.0,0.00019178,2]
[387539908,1758762632113,-480.0,0.00019178,2]
[387539910,1758762632123,-480.0,0.00019178,2]
[387539912,1758762632132,-480.0,0.00019178,2]
[387539914,1758762632142,-462.30866682,0.00019178,2]
[387539916,1758762632151,-482.40510708,0.00019178,2]
[387539918,1758762632161,-547.91,0.00019178,2]
[387539920,1758762632171,-288.38144073,0.00019178,2]
[387539922,1758762632182,-480.0,0.00019178,2]
[387539924,1758762632192,-481.75944112,0.00019178,2]
[387539927,1758762632202,-480.0,0.00019178,2]
[387539929,1758762632211,-480.0,0.00019178,2]
[387539931,1758762632221,-480.0,0.00019178,2]
[387539934,1758762632235,-480.0,0.00019178,2]
[387539936,1758762632244,-501.56435078,0.00019178,2]
[387539939,1758762632254,-480.0,0.00019178,2]
[387539940,1758762632263,-483.44976949,0.00019178,2]
[387539942,1758762632273,-253.97286127,0.00019178,2]
[387539945,1758762632284,-480.0,0.00019178,2]
[387539947,1758762632294,-603.78,0.00019178,2]
[387539949,1758762632304,-581.23,0.00019178,2]
[387539951,1758762632313,-480.0,0.00019178,2]
[387539953,1758762632323,-480.0,0.00019178,2]
[387539954,1758762632332,-480.0,0.00019178,2]
[387539957,1758762632343,-480.0,0.00019178,2]
[387539959,1758762632352,-480.0,0.00019178,2]
[387539961,1758762632362,-480.0,0.00019178,2]
[387539963,1758762632372,-480.0,0.00019178,2]
[387539965,1758762632382,-480.0,0.00019178,2]
[387539967,1758762632392,-480.0,0.00019178,2]
[387539969,1758762632402,-480.0,0.00019178,2]
[387539971,1758762632411,-480.0,0.00019178,2]
[387539973,1758762632421,-617.02,0.00019178,2]
[387539974,1758762632430,-480.0,0.00019178,2]
[387539977,1758762632440,-480.0,0.00019178,2]
[387539979,1758762632450,-480.0,0.00019178,2]
[387539981,1758762632459,-480.0,0.00019178,2]
[387539983,1758762632469,-1897.37,0.00019178,2]
[387539984,1758762632479,-1225.76,0.00019178,2]
[387539986,1758762632488,-480.0,0.00019178,2]
[387539988,1758762632498,-480.0,0.00019178,2]
[387539991,1758762632508,-2725.96,0.00019178,2]
[387539993,1758762632517,-480.0,0.00019178,2]
[387539995,1758762632528,-747.47,0.00019178,2]
[387539997,1758762632536,-532.93,0.00019178,2]
[387539999,1758762632546,-1569.01,0.00019178,2]
[387540001,1758762632556,-480.0,0.00019178,2]
[387540003,1758762632566,-985.5,0.00019178,2]
[387540005,1758762632575,-480.0,0.00019178,2]
[387540007,1758762632584,-498.29,0.00019178,2]
[387540009,1758762632594,-480.0,0.00019178,2]
[387540010,1758762632604,-594.84,0.00019178,2]
[387540012,1758762632614,-1172.88,0.00019178,2]
[387540014,1758762632623,-694.0,0.00019178,2]
[387540016,1758762632632,-480.0,0.00019178,2]
[387540018,1758762632642,-938.84,0.00019178,2]
[387540020,1758762632652,-555.02,0.00019178,2]
[387540022,1758762632661,-480.0,0.00019178,2]
[387540024,1758762632670,-480.0,0.00019178,2]
[387540026,1758762632680,-480.0,0.00019178,2]
[387540028,1758762632689,-337.89933234,0.00019178,2]
[387540030,1758762632699,-480.0,0.00019178,2]
[387540032,1758762632708,-480.0,0.00019178,2]
[387540034,1758762632717,-480.0,0.00019178,2]
[387540036,1758762632727,-480.0,0.00019178,2]
[387540039,1758762632736,-542.56,0.00019178,2]
[387540041,1758762632745,-480.0,0.00019178,2]
[387540044,1758762632755,-480.0,0.00019178,2]
[387540047,1758762632764,-480.0,0.00019178,2]
[387540050,1758762632774,-636.88,0.00019178,2]
[387540053,1758762632783,-480.0,0.00019178,2]
[387540056,1758762632792,-480.0,0.00019178,2]
[387540059,1758762632802,-480.0,0.00019178,2]
[387540062,1758762632812,-971.37,0.00019178,2]
[387540065,1758762632821,-813.52,0.00019178,2]
[387540068,1758762632830,-480.0,0.00019178,2]
[387540070,1758762632839,-879.46,0.00019178,2]
[387540072,1758762632849,-480.0,0.00019178,2]
[387540074,1758762632858,-940.46,0.00019178,2]
[387540076,1758762632868,-480.0,0.00019178,2]
[387540078,1758762632878,-480.44,0.00019178,2]
[387540080,1758762632887,-298.99810247,0.00019178,2]
[387540082,1758762632896,-480.0,0.00019178,2]
[387540084,1758762632905,-637.32,0.00019178,2]
[387540086,1758762632916,-550.01141244,0.00019178,2]
[387540087,1758762632925,-1144.11,0.00019178,2]
[387540089,1758762632935,-480.0,0.00019178,2]
[387540092,1758762632946,-480.0,0.00019178,2]
[387540093,1758762632956,-480.0,0.00019178,2]
[387540096,1758762632967,-258.38,0.00019178,2]
[387540098,1758762632978,-500.0,0.00019178,2]
[387540099,1758762632989,-14192.16032793,0.00019178,2]
[387540102,1758762633003,-468.6273283,0.00019178,2]
[387540104,1758762633016,-1397.39683539,0.00019178,2]
[387540584,1758762637949,-2612.38,0.00019178,2]
[387540586,1758762637959,-480.0,0.00019178,2]
[387540588,1758762637969,-2701.33587654,0.00019178,2]
[387540591,1758762637981,-325.21779113,0.00019178,2]
[387540593,1758762637993,-46.58270261,0.00019178,2]
[387540595,1758762638002,-188.8784676,0.00019273,2]
[387540597,1758762638012,-592.81803013,0.00019273,2]
[387540598,1758762638023,-329.88729687,0.00019273,2]
[387540599,1758762638035,-876.75802222,0.00019273,2]
[387540600,1758762638044,-219.57,0.00019342,3]
[387540602,1758762638055,-249.64638718,0.00019342,3]
[387540606,1758762638071,-409.09361282,0.00019342,3]
[387540608,1758762638080,-180.0,0.00019351,2]
[387540610,1758762638089,-229.28946139,0.00019351,2]
[387540611,1758762638098,-200.0,0.00019351,2]
[387540612,1758762638107,-40133.82163943,0.00019352,2]
[387540613,1758762638119,-7283.88300838,0.00019352,2]
[387540778,1758762639974,-906.0,0.00019178,2]
[387540784,1758762640027,-597.63,0.00019178,2]
[387540786,1758762640037,-1818.32,0.00019178,2]
[387540788,1758762640046,-2161.1620672,0.00019352,2]
[387540858,1758762643109,-944.43,0.00019178,2]
[387540859,1758762643119,-480.0,0.00019178,2]
[387540860,1758762643128,-12708.89019382,0.00019352,2]
[387540861,1758762643164,-398.36829771,0.00019352,2]
[387541106,1758762646080,-12517.10719673,0.00019352,2]
[387541109,1758762646093,-355.15431908,0.00019352,2]
[387541114,1758762646136,-1938.1301333,0.00019352,2]
[387541117,1758762646147,-375.17554762,0.00019352,2]
[387541124,1758762646208,-649.52187348,0.00019352,2]
[387541126,1758762646219,-18626.39010007,0.00019352,2]
[387541128,1758762646230,-2287.47922523,0.00019352,2]
[387545277,1758762710568,718.0,0.00019046,2]
[387545293,1758762819486,2266.48900617,0.00019,2]
[387545297,1758763249349,153.78463639,0.00019078,2]
[387545302,1758763521994,-255.30621879,0.00019178,2]
[387545303,1758763522018,-480.0,0.00019178,2]
[387545304,1758763522043,-480.0,0.00019178,2]
[387545305,1758763522067,-525.08,0.00019178,2]
[387545306,1758763522090,-237.34,0.00019178,2]
[387545307,1758763522114,-480.0,0.00019178,2]
[387545308,1758763522138,-480.0,0.00019178,2]
[387545309,1758763522161,-480.0,0.00019178,2]
[387545310,1758763522184,-480.0,0.00019178,2]
[387545311,1758763522208,-480.0,0.00019178,2]
[387545312,1758763522233,-480.0,0.00019178,2]
[387545313,1758763522257,-480.0,0.00019178,2]
[387545314,1758763522281,-480.0,0.00019178,2]
[387545315,1758763522305,-480.0,0.00019178,2]
[387545316,1758763522329,-511.0,0.00019178,2]
[387545317,1758763522354,-901.27,0.00019178,2]
[387545318,1758763522378,-480.0,0.00019178,2]
[387545319,1758763522402,-480.0,0.00019178,2]
[387545320,1758763522428,-716.33,0.00019178,2]
[387545321,1758763522452,-842.82,0.00019178,2]
[387545322,1758763522476,-480.0,0.00019178,2]
[387545323,1758763522500,-480.0,0.00019178,2]
[387545324,1758763522526,-2503.53,0.00019178,2]
[387545325,1758763522551,-480.0,0.00019178,2]
[387545326,1758763522576,-480.0,0.00019178,2]
[387545327,1758763522600,-480.0,0.00019178,2]
[387545328,1758763522625,-510.72,0.00019178,2]
[387545329,1758763522650,-480.0,0.00019178,2]
[387545330,1758763522675,-570.05,0.00019178,2]
[387545331,1758763522701,-905.08,0.00019178,2]
[387545332,1758763522728,-1440.98,0.00019178,2]
[387545333,1758763522753,-480.0,0.00019178,2]
[387545334,1758763522778,-480.0,0.00019178,2]
[387545335,1758763522802,-480.0,0.00019178,2]
[387545336,1758763522827,-480.0,0.00019178,2]
[387545337,1758763522852,-665.08,0.00019178,2]
[387545338,1758763522876,-480.0,0.00019178,2]
[387545339,1758763522901,-899.73,0.00019178,2]
[387545340,1758763522927,-480.0,0.00019178,2]
[387545341,1758763522952,-480.0,0.00019178,2]
[387545342,1758763522977,-480.0,0.00019178,2]
[387545343,1758763523002,-610.76,0.00019178,2]
[387545344,1758763523027,-591.31,0.00019178,2]
[387545345,1758763523050,-480.0,0.00019178,2]
[387545346,1758763523073,-480.0,0.00019178,2]
[387545347,1758763523098,-1096.43,0.00019178,2]
[387545348,1758763523122,-480.0,0.00019178,2]
[387545349,1758763523145,-610.34,0.00019178,2]
[387545350,1758763523168,-480.0,0.00019178,2]
[387545351,1758763523193,-480.0,0.00019178,2]
[387545352,1758763523216,-315.33,0.00019178,2]
[387545353,1758763523240,-480.0,0.00019178,2]
[387545354,1758763523264,-480.0,0.00019178,2]
[387545355,1758763523289,-779.62,0.00019178,2]
[387545356,1758763523313,-930.89,0.00019178,2]
[387545357,1758763523337,-480.0,0.00019178,2]
[387545358,1758763523361,-480.0,0.00019178,2]
[387545359,1758763523384,-480.0,0.00019178,2]
[387545360,1758763523409,-500.0,0.00019178,2]
[387545361,1758763523434,-188.8784676,0.00019273,2]
[387545362,1758763523459,-1199.64223282,0.00019273,2]
[387545363,1758763523483,-336.06,0.00019342,3]
[387545364,1758763523511,-168.03,0.00019342,3]
[387545365,1758763523536,-504.1,0.00019342,3]
[387545366,1758763523560,-480.0,0.00019351,2]
[387545367,1758763523585,-1742.55,0.00019351,2]
[387545368,1758763523610,-1174.69,0.00019351,2]
[387545369,1758763523637,-1124.01,0.00019351,2]
[387545370,1758763523663,-201.1258529,0.00019351,2]
[387545371,1758763523701,-700.90405276,0.00019352,2]
[387545372,1758763523725,-328.0,0.00019352,2]
[387545373,1758763523749,-157173.01317513,0.00019352,2]
[387545401,1758763542637,173.0,0.00019043,2]
[387545408,1758763724447,-173.0,0.00019154,2]
[387545409,1758763734336,-1200.0,0.00019177,2]
[387545410,1758763743175,173.0,0.00018981,2]
[387545411,1758763744382,-483.15402451,0.00019178,2]
[387545412,1758763744410,-480.0,0.00019178,2]
[387545413,1758763744437,-480.0,0.00019178,2]
[387545414,1758763744470,-480.0,0.00019178,2]
[387545415,1758763744497,-480.0,0.00019178,2]
[387545416,1758763744525,-480.0,0.00019178,2]
[387545417,1758763744552,-484.42774115,0.00019178,2]
[387545418,1758763744579,-485.98608114,0.00019178,2]
[387545419,1758763744606,-480.0,0.00019178,2]
[387545420,1758763744634,-488.06571843,0.00019178,2]
[387545421,1758763744803,-61.9945775,0.00019178,2]
[387545422,1758763754396,-418.0054225,0.00019178,2]
[387545423,1758763754424,-480.0,0.00019178,2]
[387545424,1758763754453,-480.0,0.00019178,2]
[387545425,1758763754481,-807.7,0.00019178,2]
[387545426,1758763754508,-480.0,0.00019178,2]
[387545427,1758763754535,-480.0,0.00019178,2]
[387545428,1758763754562,-480.0,0.00019178,2]
[387545429,1758763754590,-480.0,0.00019178,2]
[387545430,1758763754619,-480.0,0.00019178,2]
[387545431,1758763754648,-348.599155,0.00019178,2]
[387545432,1758763754780,-131.400845,0.00019178,2]
[387545435,1758763803283,1682.3,0.00018,2]
[387545436,1758763825860,190.66886789,0.00019078,2]
[387545470,1758763832271,-347.6431734,0.00019178,2]
[387545473,1758763832368,-132.3568266,0.00019178,2]
[387545475,1758763832378,-366.82966723,0.00019178,2]
[387545493,1758763833121,-113.17033277,0.00019178,2]
[387545494,1758763833133,-480.0,0.00019178,2]
[387545495,1758763833143,-482.44293641,0.00019178,2]
[387545496,1758763833152,-480.0,0.00019178,2]
[387545497,1758763833162,-480.0,0.00019178,2]
[387545498,1758763833175,-480.0,0.00019178,2]
[387545499,1758763833189,-480.0,0.00019178,2]
[387545500,1758763833200,-482.20432103,0.00019178,2]
[387545501,1758763833210,-480.0,0.00019178,2]
[387545502,1758763833220,-480.0,0.00019178,2]